bitfinex-derivatives/quotes_SOLF0:USTF0_20250626
["timestamp","ask_amount","ask_price","bid_price","bid_amount"]
[1750943078054,40.4831,143.14,143.05,2.2763]
[1750943078250,45.44737033,143.14,143.04,2.4629]
[1750943078451,40.4831,143.14,143.04,2.4629]
[1750943078652,45.44737033,143.14,143.04,2.4629]
[1750943078957,6.9839,143.13,143.1,6.9848]
[1750943079152,6.9839,143.13,143.05,2.4118]
[1750943079350,40.4831,143.14,143.05,2.4118]
[1750943079550,52.46990134,143.14,143.11,6.9844]
[1750943080053,50.10950134,143.14,143.12,6.9839]
[1750943080252,42.6235,143.14,143.05,2.4118]
[1750943080451,6.9836,143.13,143.05,2.4118]
[1750943080654,6.9836,143.13,143.11,6.9845]
[1750943081562,6.9842,143.12,143.05,2.4118]
[1750943081755,38.0747,143.14,143.05,2.4118]
[1750943081955,5.00517598,143.13,143.07,6.9863]
[1750943082156,5.00517598,143.13,143.03,35.66]
[1750943082460,2.4061,143.12,143.03,35.66]
[1750943082755,6.9853,143.1,143.07,6.9865]
[1750943082958,42.5853,143.1,143.07,6.9865]
[1750943083364,35.6,143.1,143.03,35.66]
[1750943083952,35.6,143.1,143.08,6.9857]
[1750943084354,35.6,143.1,143.03,35.66]
[1750943084957,35.6,143.1,143.09,6.9855]
[1750943089662,5.02702377,143.12,143.11,6.9846]
[1750943091862,35.6,143.13,143.12,6.9841]
[1750943092060,40.63142739,143.13,143.12,6.9841]
[1750943092267,35.6,143.13,143.12,6.9841]
[1750943093867,40.64673098,143.13,143.12,6.9841]
[1750943094367,40.64893054,143.13,143.12,6.9841]
[1750943095060,4.44200843,143.14,143.13,6.9836]
[1750943095265,5.0491929,143.14,143.07,37.9695]
[1750943095467,648.9193,143.16,143.07,37.9695]
[1750943095666,9.49905914,143.15,143.07,44.48755785]
[1750943095863,5.05218679,143.14,143.07,44.48755785]
[1750943096065,648.9193,143.16,143.07,44.48755785]
[1750943096369,12.03484445,143.15,143.13,6.9831]
[1750943096569,5.05214445,143.14,143.07,44.48755785]
[1750943096874,4.44955068,143.15,143.07,44.48755785]
[1750943097065,5.05482746,143.14,143.13,6.9832]
[1750943100466,5.05482746,143.14,143.07,8.88755785]
[1750943100673,5.05482746,143.13,143.05,11.18205785]
[1750943100971,45.12578573,143.12,143.05,11.18205785]
[1750943101170,5.07263414,143.11,143.05,11.18205785]
[1750943101373,5.07466387,143.1,143.05,11.18205785]
[1750943101671,11.43932576,143.11,143.09,6.9853]
[1750943101867,5.07439786,143.1,143.09,6.9853]
[1750943102770,5.07439786,143.1,143.08,6.9858]
[1750943102966,5.07645318,143.09,143.08,6.9858]
[1750943107070,5.07645318,143.09,143.04,6.51805785]
[1750943107277,40.67645318,143.08,143.03,6.51805785]
[1750943107467,5.07645318,143.07,143.02,6.51805785]
[1750943107773,35.6,143.08,143.02,6.51805785]
[1750943107977,5.05685552,143.07,143.02,6.51805785]
[1750943108175,35.6,143.08,143.02,6.51805785]
[1750943108369,5.05526772,143.07,143.02,6.51805785]
[1750943108569,42.5862,143.08,143.02,6.51805785]
[1750943108776,5.05553239,143.07,143.02,6.51805785]
[1750943108975,42.5862,143.08,143.02,6.51805785]
[1750943109178,5.05516256,143.07,143.02,6.51805785]
[1750943109475,42.5862,143.08,143.06,6.9867]
[1750943109669,5.06395228,143.07,143.06,6.9867]
[1750943110376,5.06395228,143.07,143.01,6.51805785]
[1750943110576,5.06395228,143.06,143.0,6.51805785]
[1750943110778,4.44074486,143.07,143.0,6.51805785]
[1750943110971,5.05692545,143.06,143.0,6.51805785]
[1750943111176,6.9873,143.06,143.0,6.51805785]
[1750943112075,11.42620272,143.07,143.01,6.51805785]
[1750943112275,35.6,143.08,143.01,6.51805785]
[1750943112276,9.493893,143.06,143.01,6.51805785]
[1750943112476,5.05439028,143.05,143.01,6.51805785]
[1750943112675,42.5863,143.08,143.06,6.987]
[1750943112876,9.48324411,143.07,143.06,6.987]
[1750943113885,5.05569429,143.07,143.05,6.9873]
[1750943114077,35.6,143.08,143.05,6.9873]
[1750943114274,5.02339955,143.07,143.05,6.9873]
[1750943114476,35.6,143.08,143.04,6.9878]
[1750943114670,5.02317996,143.07,143.0,6.51805785]
[1750943114973,35.6,143.08,142.99,195.81748378]
[1750943115169,5.02090261,143.07,142.99,195.81748378]
[1750943115373,35.6,143.08,142.99,195.81748378]
[1750943115670,6.9873,143.06,143.04,6.988]
[1750943115874,5.01882126,143.05,143.04,6.988]
[1750943116884,5.01882126,143.06,143.0,6.51805785]
[1750943117085,11.40089855,143.07,143.0,6.51805785]
[1750943117277,6.9868,143.07,143.04,6.9877]
[1750943117881,6.9868,143.07,143.0,6.51805785]
[1750943118288,6.9868,143.07,143.04,6.9876]
[1750943119586,35.6,143.08,143.05,6.9874]
[1750943119587,47.00039855,143.08,143.05,6.9874]
[1750943119883,5.01324061,143.07,143.05,6.9874]
[1750943120189,47.00039855,143.08,143.01,6.51805785]
[1750943120389,5.01859236,143.07,143.01,6.51805785]
[1750943120688,42.5863,143.08,143.05,6.9872]
[1750943120890,5.01860808,143.07,143.05,6.9872]
[1750943121084,5.01834267,143.07,143.05,6.9872]
[1750943121279,47.60464267,143.08,143.05,6.9872]
[1750943121781,40.61834267,143.08,143.01,6.51805785]
[1750943121980,40.61834267,143.08,143.02,6.51805785]
[1750943122188,5.01847502,143.09,143.03,42.09805785]
[1750943122488,35.58,143.11,143.04,2.3735]
[1750943122684,5.01835926,143.1,143.09,6.9855]
[1750943123289,42.5647,143.11,143.09,6.9855]
[1750943123488,35.58,143.11,143.09,6.9855]
[1750943123990,35.58,143.11,143.1,6.9851]
[1750943124179,40.6111405,143.11,143.1,6.9851]
[1750943124482,4.40065144,143.14,143.07,42.09805785]
[1750943124680,4.40065144,143.14,143.08,11.38795785]
[1750943125078,35.58,143.15,143.13,6.9831]
[1750943125283,35.58,143.15,143.08,4.8699]
[1750943126286,35.58,143.15,143.11,6.9843]
[1750943126287,6.9835,143.14,143.11,6.9843]
[1750943127388,6.9835,143.14,143.08,4.8699]
[1750943127389,35.58,143.15,143.1,6.9849]
[1750943127585,4.40065144,143.14,143.1,6.9849]
[1750943127785,6.9838,143.13,143.1,6.9849]
[1750943128587,11.38445144,143.13,143.1,6.9849]
[1750943128890,6.9838,143.13,143.1,6.9849]
[1750943129089,11.38445144,143.13,143.1,6.9849]
[1750943129391,6.9838,143.13,143.1,6.9849]
[1750943129692,11.38445144,143.13,143.11,6.9845]
[1750943129888,6.9838,143.13,143.11,6.9845]
[1750943130094,11.38445144,143.13,143.11,6.9845]
[1750943130386,11.38395144,143.14,143.11,6.9845]
[1750943130985,42.5629,143.15,143.12,6.9841]
[1750943131191,35.58,143.15,143.07,35.58]
[1750943131391,35.58,143.15,143.07,42.09805785]
[1750943131593,35.58,143.15,143.13,6.9832]
[1750943133292,42.5627,143.15,143.08,2.3407]
[1750943134396,42.5627,143.15,143.12,6.9837]
[1750943134902,42.5627,143.15,143.08,2.3407]
[1750943135399,42.5627,143.15,143.12,6.9838]
[1750943137096,11.98121859,143.14,143.12,6.9838]
[1750943137796,42.5629,143.15,143.12,6.9838]
[1750943138005,35.58,143.15,143.11,6.9844]
[1750943138399,6.9835,143.14,143.11,6.9844]
[1750943138602,35.58,143.15,143.11,6.9844]
[1750943138800,6.9837,143.13,143.1,6.9848]
[1750943139000,4.99771347,143.14,143.1,6.9848]
[1750943139195,4.99771347,143.13,143.1,6.9848]
[1750943139500,4.99771347,143.14,143.1,6.9848]
[1750943139708,6.9841,143.12,143.1,6.9848]
[1750943140498,11.98161347,143.13,143.1,6.9848]
[1750943141097,6.9839,143.13,143.1,6.9848]
[1750943141299,11.98161347,143.13,143.1,6.9848]
[1750943142396,6.9839,143.13,143.1,6.9848]
[1750943142902,4.45777676,143.14,143.1,6.9848]
[1750943143203,5.03382811,143.13,143.1,6.9848]
[1750943143404,4.46874084,143.14,143.1,6.9848]
[1750943143703,12.01821032,143.13,143.1,6.9848]
[1750943143904,6.9837,143.13,143.1,6.9848]
[1750943144301,11.45204084,143.14,143.07,35.58]
[1750943144505,40.56263249,143.13,143.07,42.09805785]
[1750943144809,35.54,143.14,143.08,2.4232]
[1750943144998,42.5226,143.15,143.08,2.4232]
[1750943145195,35.54,143.15,143.08,8.94125785]
[1750943145399,35.54,143.15,143.14,6.9831]
[1750943146896,42.5214,143.18,143.09,25.08605785]
[1750943147100,5.02321058,143.17,143.09,25.08605785]
[1750943147310,5.02321058,143.17,143.15,6.9822]
[1750943147513,5.02321058,143.17,143.09,25.08605785]
[1750943148111,42.5214,143.18,143.15,6.9824]
[1750943148312,47.54046816,143.18,143.15,6.9824]
[1750943148609,6.9817,143.17,143.15,6.9824]
[1750943148907,40.55906816,143.18,143.15,6.9824]
[1750943149108,47.54066816,143.18,143.15,6.9824]
[1750943149298,42.5216,143.18,143.15,6.9824]
[1750943149503,47.54066816,143.18,143.15,6.9824]
[1750943150007,6.9818,143.17,143.14,6.9829]
[1750943150217,40.55906816,143.18,143.14,6.9829]
[1750943150402,12.00096816,143.17,143.14,6.9829]
[1750943150710,6.9819,143.17,143.14,6.9829]
[1750943151099,6.9822,143.16,143.13,6.9834]
[1750943151698,5.03310268,143.17,143.12,6.9838]
[1750943152097,6.9832,143.14,143.11,6.9843]
[1750943152305,42.5232,143.14,143.11,6.9843]
[1750943153014,35.54,143.14,143.09,4.597]
[1750943153909,35.54,143.14,143.13,6.9836]
[1750943156521,40.57201409,143.17,143.09,4.597]
[1750943156721,5.03201409,143.16,143.09,4.597]
[1750943156914,5.03201409,143.16,143.14,6.9828]
[1750943157423,12.01441409,143.16,143.13,6.9834]
[1750943157722,5.03201409,143.16,143.09,4.597]
[1750943158021,47.55411409,143.17,143.09,4.597]
[1750943158323,35.54,143.17,143.09,4.597]
[1750943158522,6.9828,143.15,143.12,6.9838]
[1750943159623,6.9828,143.15,143.13,6.9835]
[1750943160420,12.01600218,143.16,143.13,6.9835]
[1750943160619,35.54,143.17,143.13,6.9835]
[1750943160816,5.03360218,143.16,143.13,6.9835]
[1750943161016,40.00369275,143.17,143.13,6.9835]
[1750943161321,5.03549264,143.16,143.13,6.9835]
[1750943161515,12.01819264,143.15,143.13,6.9835]
[1750943161820,6.9827,143.15,143.13,6.9835]
[1750943162022,12.01819264,143.15,143.13,6.9835]
[1750943162227,6.9827,143.15,143.13,6.9835]
[1750943162433,11.44609275,143.16,143.13,6.9835]
[1750943162627,5.03750883,143.15,143.14,6.9831]
[1750943162828,5.03750883,143.15,143.09,4.597]
[1750943163034,4.46369275,143.16,143.09,4.597]
[1750943163226,35.54,143.17,143.09,11.11505785]
[1750943163438,5.03932532,143.16,143.09,11.11505785]
[1750943163735,35.54,143.17,143.09,11.11505785]
[1750943164034,5.03932859,143.16,143.1,13.97]
[1750943164235,6.9807,143.19,143.11,35.54]
[1750943164437,9.51354274,143.18,143.17,6.9816]
[1750943164633,9.51354274,143.18,143.11,35.54]
[1750943164835,9.51354274,143.17,143.11,35.54]
[1750943165037,4.47179025,143.19,143.16,6.9817]
[1750943165234,9.518632,143.18,143.16,6.9817]
[1750943165437,9.518632,143.17,143.16,6.9817]
[1750943166139,5.04431779,143.17,143.16,6.9817]
[1750943167733,35.54,143.2,143.18,6.9808]
[1750943167938,9.53083087,143.19,143.18,6.9808]
[1750943170039,5.05046074,143.19,143.18,6.9808]
[1750943170235,9.53086552,143.19,143.18,6.9808]
[1750943170840,4.48040478,143.19,143.18,6.9808]
[1750943171331,35.54,143.2,143.19,6.9807]
[1750943171532,40.01961545,143.2,143.19,6.9807]
[1750943171940,45.06295496,143.2,143.19,6.9807]
[1750943172644,45.06295496,143.2,143.18,6.9809]
[1750943172940,5.04333951,143.19,143.18,6.9809]
[1750943174138,2.3341,143.27,143.16,35.48]
[1750943174339,2.3341,143.27,143.17,6.51805785]
[1750943174340,6.978,143.25,143.17,6.51805785]
[1750943174543,9.56957108,143.24,143.17,6.51805785]
[1750943174844,9.56926927,143.23,143.16,41.99805785]
[1750943175041,5.06739804,143.22,143.16,41.99805785]
[1750943175242,4.50126001,143.23,143.22,6.9792]
[1750943175542,5.06635973,143.23,143.22,6.9792]
[1750943175944,5.06635973,143.23,143.16,41.99805785]
[1750943175945,9.56761974,143.23,143.16,35.48]
[1750943176242,5.06635973,143.22,143.16,35.48]
[1750943176441,4.49831838,143.24,143.2,6.9798]
[1750943176646,16.5421109,143.23,143.2,6.9798]
[1750943176845,5.06489252,143.22,143.21,6.9797]
[1750943177144,4.49831838,143.24,143.16,35.48]
[1750943177339,9.56294467,143.23,143.2,6.9799]
[1750943177534,5.06462629,143.22,143.2,6.9799]
[1750943177741,4.49831838,143.23,143.16,35.48]
[1750943177942,4.49831838,143.24,143.22,6.979]
[1750943178144,5.0758617,143.23,143.22,6.979]
[1750943179657,5.0758617,143.23,143.16,49.4441]
[1750943179658,4.6145,143.27,143.25,6.9776]
[1750943179838,5.07254928,143.26,143.25,6.9776]
[1750943180144,5.07254928,143.26,143.18,6.51805785]
[1750943180348,645.7365,143.28,143.24,6.978]
[1750943180550,5.07033028,143.27,143.24,6.978]
[1750943180749,648.0033,143.28,143.24,6.978]
[1750943180956,5.07033028,143.27,143.18,6.51805785]
[1750943181245,5.0677838,143.27,143.18,6.51805785]
[1750943182245,9.57036326,143.26,143.17,148.11003292]
[1750943182449,12.0457838,143.25,143.22,6.9788]
[1750943182646,35.48,143.24,143.22,6.9788]
[1750943183237,35.48,143.24,143.21,6.9795]
[1750943183442,35.48,143.24,143.17,148.11003292]
[1750943183645,40.5477838,143.24,143.17,148.11003292]
[1750943183848,35.48,143.24,143.17,148.11003292]
[1750943184147,6.9788,143.23,143.2,6.9799]
[1750943185148,12.0465838,143.23,143.2,6.9799]
[1750943185349,6.9788,143.23,143.2,6.9799]
[1750943186044,42.4584,143.24,143.21,6.9796]
[1750943186243,5.08363938,143.23,143.17,148.11003292]
[1750943186449,40.56363938,143.24,143.22,6.9792]
[1750943186649,35.48,143.24,143.22,6.9792]
[1750943186841,40.56363938,143.24,143.22,6.9792]
[1750943187045,35.48,143.24,143.23,6.9787]
[1750943188048,5.08525405,143.26,143.25,6.9777]
[1750943189048,39.99728285,143.27,143.25,6.9777]
[1750943190151,40.55620244,143.27,143.25,6.9777]
[1750943190950,47.53320244,143.27,143.2,35.48]
[1750943191155,40.55620244,143.27,143.2,35.48]
[1750943191356,40.55620244,143.27,143.24,6.9779]
[1750943192255,47.53330244,143.27,143.24,6.9779]
[1750943194358,6.9773,143.26,143.24,6.9779]
[1750943194860,6.9773,143.26,143.23,6.9785]
[1750943195048,6.9779,143.25,143.2,35.48]
[1750943195248,135.96,143.26,143.19,2.4518]
[1750943195656,6.9785,143.24,143.21,6.9794]
[1750943195959,35.46,143.23,143.17,183.57003292]
[1750943196157,6.9794,143.22,143.19,6.9803]
[1750943198156,35.46,143.23,143.14,42.5181]
[1750943198767,6.98,143.21,143.18,6.9811]
[1750943202154,12.05378396,143.21,143.18,6.9811]
[1750943202356,6.98,143.21,143.18,6.9811]
[1750943202660,12.05378396,143.21,143.18,6.9811]
[1750943202860,6.98,143.21,143.18,6.9811]
[1750943203060,12.05378396,143.21,143.18,6.9811]
[1750943203261,6.98,143.21,143.18,6.9811]
[1750943204766,12.072419,143.22,143.19,6.9805]
[1750943205266,6.9794,143.22,143.19,6.9805]
[1750943205765,12.0741485,143.21,143.18,6.9809]
[1750943205953,5.0943485,143.2,143.18,6.9809]
[1750943206158,11.49953226,143.21,143.18,6.9809]
[1750943206457,5.07728017,143.2,143.18,6.9809]
[1750943206858,5.07728017,143.2,143.14,2.2756]
[1750943207152,35.46,143.19,143.14,2.2756]
[1750943207967,35.46,143.19,143.17,6.9813]
[1750943208464,42.4409,143.19,143.16,6.9819]
[1750943209367,35.46,143.19,143.14,2.2756]
[1750943209863,6.9814,143.18,143.15,6.9823]
[1750943210262,35.46,143.19,143.14,2.2756]
[1750943210461,42.4409,143.19,143.16,6.9819]
[1750943211657,6.9813,143.18,143.15,6.9824]
[1750943211856,35.46,143.19,143.12,41.97805785]
[1750943212063,9.54955198,143.18,143.1,11.20565785]
[1750943212265,9.54955198,143.17,143.1,4.6876]
[1750943212570,9.54955198,143.16,143.1,4.6876]
[1750943212770,40.54463444,143.15,143.1,4.6876]
[1750943212971,35.48,143.15,143.1,4.6876]
[1750943213374,35.48,143.15,143.13,6.9834]
[1750943215371,40.52742934,143.15,143.13,6.9834]
[1750943215572,35.48,143.15,143.13,6.9834]
[1750943215776,42.4627,143.15,143.13,6.9834]
[1750943216173,42.4627,143.15,143.12,6.9838]
[1750943216772,40.52737522,143.15,143.1,6.9848]
[1750943217172,6.9839,143.13,143.09,6.9853]
[1750943217663,35.48,143.15,143.09,6.9853]
[1750943217863,5.04625649,143.14,143.08,6.9859]
[1750943218171,35.48,143.15,143.06,35.48]
[1750943218480,5.04562058,143.14,143.06,35.48]
[1750943218865,35.48,143.15,143.06,35.48]
[1750943219169,5.04312746,143.14,143.06,35.48]
[1750943219474,6.9838,143.13,143.06,35.48]
[1750943219771,5.04312746,143.14,143.06,35.48]
[1750943219973,5.04312746,143.14,143.05,6.9553]
[1750943220272,5.04312746,143.13,143.05,6.9553]
[1750943220574,5.04312746,143.14,143.05,6.9553]
[1750943220775,5.04312746,143.13,143.05,6.9553]
[1750943220962,5.04312746,143.14,143.05,6.9553]
[1750943221278,40.52312746,143.15,143.05,6.9553]
[1750943221977,6.9844,143.12,143.08,6.986]
[1750943222168,35.48,143.11,143.05,6.9553]
[1750943222572,42.465,143.11,143.07,6.9861]
[1750943224282,42.465,143.11,143.08,6.986]
[1750943224471,42.465,143.11,143.05,6.9553]
[1750943224472,35.48,143.11,143.05,6.9553]
[1750943224876,35.48,143.11,143.09,6.9853]
[1750943225574,35.48,143.14,143.05,6.9553]
[1750943225981,35.48,143.14,143.13,6.9836]
[1750943227076,42.4819,143.17,143.14,6.9831]
[1750943227377,35.5,143.17,143.07,35.5]
[1750943227581,42.4819,143.17,143.14,6.9827]
[1750943229074,35.5,143.17,143.07,35.5]
[1750943229778,6.9826,143.15,143.12,6.9838]
[1750943229976,35.5,143.17,143.07,35.5]
[1750943230574,6.9822,143.16,143.13,6.9832]
[1750943231077,6.9827,143.15,143.12,6.9838]
[1750943232987,6.9827,143.15,143.11,6.9843]
[1750943233277,6.9824,143.16,143.07,35.5]
[1750943233879,6.9826,143.15,143.12,6.9838]
[1750943234786,6.9832,143.14,143.11,6.9843]
[1750943234984,35.5,143.17,143.07,35.5]
[1750943235375,6.9829,143.15,143.12,6.9838]
[1750943236287,6.9832,143.14,143.11,6.9844]
[1750943237982,35.5,143.17,143.07,35.5]
[1750943238183,35.5,143.17,143.07,42.01805785]
[1750943238379,6.9826,143.16,143.07,42.01805785]
[1750943238582,40.48226107,143.17,143.12,6.9839]
[1750943238784,35.5,143.17,143.12,6.9839]
[1750943239185,6.9827,143.15,143.12,6.9839]
[1750943242491,6.9824,143.16,143.13,6.9836]
[1750943242973,6.9829,143.15,143.12,6.9839]
[1750943245485,39.92893492,143.17,143.08,20.48995785]
[1750943245689,5.00390898,143.16,143.09,6.51805785]
[1750943246191,39.92893492,143.17,143.1,7.0779]
[1750943246389,5.00683522,143.16,143.1,7.0779]
[1750943246584,46.91083492,143.17,143.14,6.9828]
[1750943246784,5.00719872,143.16,143.1,7.0779]
[1750943246979,39.92893492,143.17,143.1,7.0779]
[1750943247180,11.98944335,143.16,143.13,6.9833]
[1750943247388,6.9822,143.16,143.13,6.9833]
[1750943247786,35.5,143.17,143.09,6.51805785]
[1750943247991,9.45379651,143.16,143.08,6.51805785]
[1750943248192,5.00886704,143.15,143.08,6.51805785]
[1750943248380,4.44492947,143.16,143.08,6.51805785]
[1750943248580,5.01058874,143.15,143.08,6.51805785]
[1750943248783,6.9841,143.12,143.09,6.9851]
[1750943248982,35.48,143.13,143.08,6.51805785]
[1750943249486,42.4639,143.13,143.1,6.9848]
[1750943249683,35.48,143.13,143.08,6.51805785]
[1750943249885,6.9845,143.12,143.06,13.64015785]
[1750943250089,39.92597077,143.13,143.06,13.64015785]
[1750943250288,5.01793274,143.12,143.06,13.64015785]
[1750943250589,35.48,143.13,143.08,6.986]
[1750943250898,9.46572897,143.12,143.05,6.51805785]
[1750943251099,9.46572897,143.11,143.04,6.51805785]
[1750943251300,5.01984772,143.1,143.04,6.51805785]
[1750943251595,4.44597077,143.11,143.04,6.51805785]
[1750943251799,5.01984772,143.1,143.08,6.9858]
[1750943251998,11.43057077,143.11,143.08,6.9858]
[1750943252186,5.01937415,143.1,143.07,6.9861]
[1750943252387,6.9851,143.1,143.07,6.9861]
[1750943252583,4.44597077,143.12,143.04,6.51805785]
[1750943252789,9.46647309,143.11,143.04,6.51805785]
[1750943252989,5.02050232,143.1,143.04,6.51805785]
[1750943253200,35.48,143.13,143.04,6.51805785]
[1750943253499,9.4661531,143.12,143.07,6.9862]
[1750943253700,9.4661531,143.11,143.07,6.9862]
[1750943253998,12.00751649,143.1,143.07,6.9862]
[1750943254198,6.9852,143.1,143.07,6.9862]
[1750943254995,11.40612398,143.11,143.08,6.986]
[1750943255299,18.82,143.12,143.05,6.51805785]
[1750943255604,4.98747198,143.11,143.05,6.51805785]
[1750943255790,18.82,143.12,143.05,6.51805785]
[1750943256092,4.98747198,143.11,143.09,6.9853]
[1750943256295,18.82,143.12,143.06,6.51805785]
[1750943256497,9.41261629,143.11,143.05,6.51805785]
[1750943256693,4.98863841,143.1,143.05,6.51805785]
[1750943256998,4.42337092,143.11,143.05,6.51805785]
[1750943257190,4.98842134,143.1,143.08,6.9858]
[1750943257391,6.9848,143.11,143.08,6.9858]
[1750943257591,4.9884039,143.1,143.08,6.9858]
[1750943257795,6.9848,143.11,143.08,6.9858]
[1750943257996,4.9884039,143.1,143.08,6.9858]
[1750943258197,6.9848,143.11,143.08,6.9858]
[1750943258494,4.98801208,143.1,143.08,6.9858]
[1750943258695,6.9848,143.11,143.08,6.9858]
[1750943258994,4.98182677,143.1,143.08,6.9858]
[1750943259197,6.9848,143.11,143.08,6.9858]
[1750943259389,4.98160089,143.1,143.08,6.9858]
[1750943259595,6.9848,143.11,143.08,6.9858]
[1750943259799,4.98160089,143.1,143.05,6.51805785]
[1750943260100,4.42252025,143.11,143.05,6.51805785]
[1750943260306,4.98140676,143.1,143.05,6.51805785]
[1750943260602,4.42225694,143.11,143.1,6.9846]
[1750943260797,9.40356124,143.11,143.1,6.9846]
[1750943261493,4.9813043,143.11,143.1,6.9846]
[1750943263102,4.9813043,143.11,143.06,6.51805785]
[1750943263103,35.48,143.13,143.11,6.9844]
[1750943263308,4.98503885,143.12,143.11,6.9844]
[1750943263798,35.48,143.13,143.1,6.9849]
[1750943264005,4.9915864,143.12,143.1,6.9849]
[1750943264202,35.48,143.13,143.1,6.9849]
[1750943264404,4.99159797,143.12,143.1,6.9849]
[1750943264600,42.4638,143.13,143.1,6.9849]
[1750943264801,4.99159797,143.12,143.1,6.9849]
[1750943265102,4.43250091,143.12,143.1,6.9849]
[1750943266102,42.4638,143.13,143.1,6.9849]
[1750943266303,9.43067466,143.12,143.1,6.9849]
[1750943266504,42.4638,143.13,143.1,6.9849]
[1750943266704,9.43067466,143.12,143.1,6.9849]
[1750943266899,42.4638,143.13,143.1,6.9849]
[1750943267203,9.43067466,143.12,143.1,6.9849]
[1750943267501,42.4638,143.13,143.1,6.9849]
[1750943267702,9.43099273,143.12,143.1,6.9849]
[1750943267906,42.4638,143.13,143.1,6.9849]
[1750943268103,9.43099273,143.12,143.1,6.9849]
[1750943268305,35.48,143.13,143.1,6.9849]
[1750943268505,4.99216768,143.12,143.1,6.9849]
[1750943268705,35.48,143.13,143.1,6.9849]
[1750943268902,5.01031517,143.12,143.1,6.9849]
[1750943269109,35.48,143.13,143.1,6.9849]
[1750943269405,5.01069036,143.12,143.1,6.9849]
[1750943269700,35.48,143.13,143.11,6.9846]
[1750943269902,5.01032256,143.12,143.11,6.9846]
[1750943273909,35.48,143.13,143.12,6.9841]
[1750943274210,44.93809681,143.13,143.12,6.9841]
[1750943275008,44.93809681,143.13,143.11,6.9843]
[1750943275199,35.48,143.13,143.11,6.9843]
[1750943275904,4.99997978,143.12,143.1,6.9849]
[1750943276103,42.4639,143.13,143.1,6.9849]
[1750943276406,5.00032348,143.12,143.07,6.51805785]
[1750943276606,35.48,143.13,143.07,6.51805785]
[1750943276807,5.00060597,143.12,143.11,6.9846]
[1750943277309,35.48,143.13,143.12,6.9841]
[1750943277500,44.92920117,143.13,143.12,6.9841]
[1750943277708,40.48107354,143.13,143.12,6.9841]
[1750943280509,40.48107354,143.13,143.08,6.51805785]
[1750943280711,35.48,143.13,143.08,6.51805785]
[1750943281112,35.48,143.13,143.11,6.9843]
[1750943281819,42.4638,143.13,143.1,6.9848]
[1750943282916,9.46296931,143.12,143.08,6.51805785]
[1750943283219,5.00218747,143.11,143.07,6.51805785]
[1750943283406,6.9843,143.12,143.08,6.9857]
[1750943283610,5.00274065,143.11,143.08,6.9857]
[1750943283811,6.9843,143.12,143.08,6.9857]
[1750943284021,5.00274093,143.11,143.08,6.9857]
[1750943284220,5.00238417,143.1,143.06,6.51805785]
[1750943284423,35.48,143.13,143.05,6.51805785]
[1750943284618,9.46210597,143.12,143.05,6.51805785]
[1750943284919,16.44670597,143.11,143.08,6.9858]
[1750943285119,4.45983198,143.1,143.08,6.9858]
[1750943285423,6.9846,143.11,143.08,6.9858]
[1750943285716,9.45683056,143.1,143.08,6.9858]
[1750943285909,5.01469485,143.09,143.08,6.9858]
[1750943287819,6.9844,143.12,143.09,6.9855]
[1750943288121,9.43814674,143.11,143.09,6.9855]
[1750943288323,9.43814674,143.1,143.09,6.9855]
[1750943289019,9.43814674,143.1,143.08,6.9858]
[1750943289322,4.99729908,143.09,143.08,6.9858]
[1750943290127,4.99729908,143.09,143.07,6.9863]
[1750943290316,2.3912,143.12,143.05,6.51805785]
[1750943290515,9.441351,143.11,143.05,6.51805785]
[1750943290816,9.441351,143.1,143.08,6.986]
[1750943291018,4.9978665,143.09,143.08,6.986]
[1750943291423,4.9978665,143.09,143.07,6.9868]
[1750943291618,6.9854,143.11,143.07,6.9868]
[1750943291816,9.44426715,143.1,143.07,6.9868]
[1750943292018,5.00253954,143.09,143.08,6.9866]
[1750943292425,5.00253954,143.09,143.07,6.9869]